[Event "17th Aeroflot Open-A 2019"]
[Site "Moscow"]
[Date "2019.02.27"]
[Round "9.25"]
[White "Zvjaginsev, Vadim"]
[Black "Santos Ruiz, Miguel"]
[Result "1-0"]
[ECO "A06"]
[WhiteElo "2642"]
[BlackElo "2554"]
[Annotator "ChessBase"]
[PlyCount "119"]
[EventDate "2019.02.19"]
[EventCountry "RUS"]
[SourceTitle "playchess.com"]
[Source "ChessBase"]
[SourceQuality "1"]
[TimeControl "40/5400+30:1800+30"]

1. Nf3 {[%emt 0:00:34]} d5 {[%emt 0:00:00]} 2. g3 {[%emt 0:00:06]} g6 {[%emt 0:00:00]} 3. Bg2 {[%emt 0:00:06]} Bg7 {[%emt 0:00:00]} 4. O-O {[%emt 0:00:06]} e5 {[%emt 0:00:00]} 5. d3 {[%emt 0:00:06]} Ne7 {[%emt 0:00:00]} 6. c4 {[%emt 0:01:55]} c6 {[%emt 0:01:11]} 7. Nc3 {[%emt 0:03:11]} O-O {[%emt 0:15:11]} 8. Rb1 {[%emt 0:04:09]} h6 {[%emt 0:04:16]} 9. e4 {[%emt 0:05:49]} d4 {[%emt 0:10:38]} 10. Ne2 {[%emt 0:02:52]} a5 {[%emt 0:06:48]} 11. Nh4 {[%emt 0:12:36]} g5 {[%emt 0:04:45]} 12. Nf3 {[%emt 0:02:18]} f5 {[%emt 0:02:16]} 13. exf5 {[%emt 0:06:06]} Bxf5 {[%emt 0:00:13]} 14. h4 {[%emt 0:02:48]} e4 {[%emt 0:14:12]} 15. Ne1 {[%emt 0:01:30]} exd3 {[%emt 0:00:17]} 16. Nxd3 {[%emt 0:00:07]} Ng6 {[%emt 0:03:52]} 17. hxg5 {[%emt 0:04:52]} hxg5 {[%emt 0:00:05]} 18. b4 {[%emt 0:00:18]} Ne5 {[%emt 0:02:44]} 19. Nxe5 {[%emt 0:04:46]} Bxb1 {[%emt 0:00:12]} 20. Nd3 {[%emt 0:02:29]} axb4 {[%emt 0:02:11]} 21. Bxg5 {[%emt 0:01:18]} Qxg5 {[%emt 0:02:08]} 22. Qxb1 {[%emt 0:00:05]} Qd2 {[%emt 0:04:06]} 23. Nef4 {[%emt 0:01:46]} Rxa2 {[%emt 0:03:14]} 24. Bh3 {[%emt 0:02:29]} Rxf4 {[%emt 0:05:26]} 25. Nxf4 {[%emt 0:06:53]} d3 {[%emt 0:00:53]} 26. Nxd3 {[%emt 0:06:27]} Ra1 {[%emt 0:10:04]} 27. Qxb4 {[%emt 0:00:23]} Rxf1+ {[%emt 0:04:43]} 28. Bxf1 {[%emt 0:00:08]} Qxb4 {[%emt 0:00:01]} 29. Nxb4 {[%emt 0:00:09]} Nd7 {[%emt 0:00:09]} 30. Kg2 {[%emt 0:02:20]} Nc5 {[%emt 0:00:05]} 31. f4 {[%emt 0:00:15]} Bc3 {[%emt 0:00:13]} 32. Nc2 {[%emt 0:00:18]} Ne6 {[%emt 0:00:24]} 33. Ne3 {[%emt 0:04:09]} Nd4 {[%emt 0:00:12]} 34. Kf2 {[%emt 0:03:36]} b5 {[%emt 0:01:30]} 35. Bd3 {[%emt 0:05:54]} b4 {[%emt 0:01:16]} 36. Nf5 {[%emt 0:00:18]} Ne6 {[%emt 0:01:13]} 37. Ne7+ {[%emt 0:00:19]} Kf7 {[%emt 0:00:33]} 38. Nxc6 {[%emt 0:00:22]} Nc5 {[%emt 0:00:10]} 39. Bb1 {[%emt 0:05:59]} b3 {[%emt 0:00:25]} 40. Ke2 {[%emt 0:00:00]} Na4 {[%emt 0:00:00]} 41. Na7 {[%emt 0:03:05]} Bb4 {[%emt 0:09:48]} 42. Nb5 {[%emt 0:00:15]} Nb6 {[%emt 0:00:02]} 43. Kd3 {[%emt 0:03:23]} Be1 {[%emt 0:00:11]} 44. Nd6+ {[%emt 0:01:50]} Ke6 {[%emt 0:00:08]} 45. Ne4 {[%emt 0:00:20]} Kf5 {[%emt 0:00:19]} 46. c5 {[%emt 0:01:58]} Nd5 {[%emt 0:05:07]} 47. Kc4 {[%emt 0:00:36]} Ne3+ {[%emt 0:01:26]} 48. Kxb3 {[%emt 0:00:10]} Ke6 {[%emt 0:00:07]} 49. c6 {[%emt 0:03:55]} Ke7 {[%emt 0:06:00]} 50. Ka4 {[%emt 0:03:26]} Kd8 {[%emt 0:00:01]} 51. Kb5 {[%emt 0:00:32]} Kc7 {[%emt 0:00:07]} 52. Kc5 {[%emt 0:01:13]} Nf5 {[%emt 0:00:02]} 53. g4 {[%emt 0:02:24]} Ne7 {[%emt 0:00:01]} 54. f5 {[%emt 0:02:01]} Nxc6 {[%emt 0:00:31]} 55. Kd5 {[%emt 0:00:09]} Nd8 {[%emt 0:01:38]} 56. g5 {[%emt 0:00:40]} Kd7 {[%emt 0:00:16]} 57. g6 {[%emt 0:00:37]} Ke8 {[%emt 0:00:41]} 58. f6 {[%emt 0:00:14]} Bh4 {[%emt 0:00:11]} 59. Ba2 {[%emt 0:00:48]} Kf8 {[%emt 0:00:36]} 60. g7+ {[%emt 0:00:47]} 1-0

[Event "17th Aeroflot Open-A 2019"]
[Site "Moscow"]
[Date "2019.02.27"]
[Round "9.27"]
[White "Afanasiev, Nikita"]
[Black "Alekseenko, Kirill"]
[Result "0-1"]
[ECO "E12"]
[WhiteElo "2508"]
[BlackElo "2634"]
[Annotator "ChessBase"]
[PlyCount "88"]
[EventDate "2019.02.19"]
[EventCountry "RUS"]
[SourceTitle "playchess.com"]
[Source "ChessBase"]
[SourceQuality "1"]
[TimeControl "40/5400+30:1800+30"]

1. d4 {[%emt 0:05:04]} Nf6 {[%emt 0:00:00]} 2. c4 {[%emt 0:00:09]} e6 {[%emt 0:00:34]} 3. Nf3 {[%emt 0:00:09]} b6 {[%emt 0:00:45]} 4. a3 {[%emt 0:00:17]} Bb7 {[%emt 0:00:25]} 5. Nc3 {[%emt 0:00:33]} d5 {[%emt 0:00:08]} 6. Bg5 {[%emt 0:01:20]} Be7 {[%emt 0:00:33]} 7. Qa4+ {[%emt 0:03:43]} Bc6 {[%emt 0:00:06]} 8. Qb3 {[%emt 0:01:55]} dxc4 {[%emt 0:01:04]} 9. Qxc4 {[%emt 0:00:06]} a6 {[%emt 0:01:00]} 10. e3 {[%emt 0:16:36]} Bb7 {[%emt 0:06:06]} 11. Be2 {[%emt 0:06:47]} Nbd7 {[%emt 0:01:12]} 12. b4 {[%emt 0:04:16]} Rc8 {[%emt 0:03:41]} 13. O-O {[%emt 0:05:04]} c5 {[%emt 0:03:13]} 14. dxc5 {[%emt 0:08:05]} bxc5 {[%emt 0:00:24]} 15. b5 {[%emt 0:00:07]} axb5 {[%emt 0:01:59]} 16. Qxb5 {[%emt 0:01:52]} Bc6 {[%emt 0:01:45]} 17. Qc4 {[%emt 0:00:06]} O-O {[%emt 0:00:49]} 18. Rfc1 {[%emt 0:02:35]} h6 {[%emt 0:02:23]} 19. Bh4 {[%emt 0:01:02]} Ra8 {[%emt 0:08:02]} 20. Bg3 {[%emt 0:05:30]} Nb6 {[%emt 0:07:16]} 21. Qb3 {[%emt 0:02:35]} Nbd5 {[%emt 0:04:56]} 22. Ne5 {[%emt 0:01:20]} Nxc3 {[%emt 0:00:09]} 23. Qxc3 {[%emt 0:00:16]} Ne4 {[%emt 0:02:04]} 24. Qc2 {[%emt 0:01:27]} Bd5 {[%emt 0:00:34]} 25. Nc4 {[%emt 0:03:54]} Bf6 {[%emt 0:07:53]} 26. Rab1 {[%emt 0:01:28]} Nc3 {[%emt 0:04:24]} 27. Rb3 {[%emt 0:00:14]} Nxe2+ {[%emt 0:14:50]} 28. Qxe2 {[%emt 0:00:04]} Ra4 {[%emt 0:01:21]} 29. Rbb1 {[%emt 0:01:42]} Bxc4 {[%emt 0:04:35]} 30. Rxc4 {[%emt 0:00:04]} Qa5 {[%emt 0:00:27]} 31. Rcc1 {[%emt 0:15:55]} Rc8 {[%emt 0:00:56]} 32. Qb5 {[%emt 0:01:55]} Qxb5 {[%emt 0:05:56]} 33. Rxb5 {[%emt 0:00:16]} Be7 {[%emt 0:00:24]} 34. Rb7 {[%emt 0:01:46]} Bf8 {[%emt 0:00:09]} 35. Kf1 {[%emt 0:01:40]} Rxa3 {[%emt 0:00:47]} 36. Ke2 {[%emt 0:00:22]} f6 {[%emt 0:03:29]} 37. Bc7 {[%emt 0:02:23]} Ra2+ {[%emt 0:01:40]} 38. Kf3 {[%emt 0:00:06]} e5 {[%emt 0:00:36]} 39. Rd1 {[%emt 0:00:54]} e4+ {[%emt 0:01:21]} 40. Kg3 {[%emt 0:00:00]} c4 {[%emt 0:00:00]} 41. Rd7 {[%emt 0:25:55]} Ra6 {[%emt 0:20:59]} 42. Bd8 {[%emt 0:02:27]} Rd6 {[%emt 0:04:24]} 43. Be7 {[%emt 0:01:25]} Rxd7 {[%emt 0:00:18]} 44. Rxd7 {[%emt 0:00:04]} Bxe7 {[%emt 0:00:08]} 0-1

[Event "17th Aeroflot Open-A 2019"]
[Site "Moscow"]
[Date "2019.02.27"]
[Round "9.29"]
[White "Jumabayev, Rinat"]
[Black "Praggnanandhaa R"]
[Result "1/2-1/2"]
[ECO "A20"]
[WhiteElo "2604"]
[BlackElo "2532"]
[Annotator "ChessBase"]
[PlyCount "87"]
[EventDate "2019.02.19"]
[EventCountry "RUS"]
[SourceTitle "playchess.com"]
[Source "ChessBase"]
[SourceQuality "1"]
[TimeControl "40/5400+30:1800+30"]

1. c4 {[%emt 0:03:16]} e5 {[%emt 0:00:04]} 2. g3 {[%emt 0:00:38]} c6 {[%emt 0:00:32]} 3. d4 {[%emt 0:01:31]} e4 {[%emt 0:00:21]} 4. Nc3 {[%emt 0:00:24]} d5 {[%emt 0:01:17]} 5. Nh3 {[%emt 0:01:14]} Bb4 {[%emt 0:12:19]} 6. Qb3 {[%emt 0:00:59]} Na6 {[%emt 0:11:02]} 7. cxd5 {[%emt 0:03:13]} Qxd5 {[%emt 0:06:21]} 8. Qxd5 {[%emt 0:19:56]} cxd5 {[%emt 0:00:39]} 9. Bd2 {[%emt 0:00:17]} Nf6 {[%emt 0:05:06]} 10. f3 {[%emt 0:02:27]} O-O {[%emt 0:03:34]} 11. Nf4 {[%emt 0:01:12]} Bxc3 {[%emt 0:02:13]} 12. bxc3 {[%emt 0:03:59]} Re8 {[%emt 0:03:59]} 13. Kf2 {[%emt 0:00:16]} Nc7 {[%emt 0:01:26]} 14. Rb1 {[%emt 0:03:06]} b6 {[%emt 0:01:26]} 15. Rg1 {[%emt 0:00:17]} Ba6 {[%emt 0:07:18]} 16. g4 {[%emt 0:00:33]} exf3 {[%emt 0:00:18]} 17. exf3 {[%emt 0:00:19]} Bxf1 {[%emt 0:00:20]} 18. Rgxf1 {[%emt 0:00:03]} Nd7 {[%emt 0:02:50]} 19. Rfc1 {[%emt 0:04:31]} b5 {[%emt 0:05:03]} 20. Ng2 {[%emt 0:02:50]} a6 {[%emt 0:01:45]} 21. a4 {[%emt 0:00:13]} Nb6 {[%emt 0:01:58]} 22. Bf4 {[%emt 0:00:11]} Ne6 {[%emt 0:01:05]} 23. axb5 {[%emt 0:02:47]} axb5 {[%emt 0:00:49]} 24. Rb2 {[%emt 0:13:30]} Rec8 {[%emt 0:07:10]} 25. Kg3 {[%emt 0:02:14]} g5 {[%emt 0:02:05]} 26. Be5 {[%emt 0:05:46]} Nc4 {[%emt 0:00:58]} 27. Rxb5 {[%emt 0:02:24]} Nxe5 {[%emt 0:00:16]} 28. dxe5 {[%emt 0:00:01]} d4 {[%emt 0:00:08]} 29. c4 {[%emt 0:00:27]} Ra4 {[%emt 0:00:51]} 30. c5 {[%emt 0:02:45]} Ra3 {[%emt 0:00:23]} 31. h4 {[%emt 0:04:06]} Rc3 {[%emt 0:01:49]} 32. Rd1 {[%emt 0:00:41]} h6 {[%emt 0:01:15]} 33. hxg5 {[%emt 0:00:44]} hxg5 {[%emt 0:00:15]} 34. Ne1 {[%emt 0:02:10]} R3xc5 {[%emt 0:00:35]} 35. Rxc5 {[%emt 0:01:20]} Rxc5 {[%emt 0:00:02]} 36. Nd3 {[%emt 0:00:17]} Rc2 {[%emt 0:00:30]} 37. Ra1 {[%emt 0:03:16]} Kg7 {[%emt 0:01:59]} 38. Rb1 {[%emt 0:01:15]} Rd2 {[%emt 0:00:51]} 39. Rb3 {[%emt 0:01:29]} Re2 {[%emt 0:00:12]} 40. Rb2 {[%emt 0:00:00]} Rxb2 {[%emt 0:00:00]} 41. Nxb2 {[%emt 0:05:31]} Nf4 {[%emt 0:05:18]} 42. Nc4 {[%emt 0:00:43]} Nd3 {[%emt 0:01:23]} 43. Nd6 {[%emt 0:00:16]} Nxe5 {[%emt 0:00:15]} 44. Nf5+ {[%emt 0:00:02]} 1/2-1/2

[Event "17th Aeroflot Open-A 2019"]
[Site "Moscow"]
[Date "2019.02.27"]
[Round "9.30"]
[White "Xu, Yinglun"]
[Black "Sethuraman, S.P."]
[Result "1-0"]
[ECO "E18"]
[WhiteElo "2512"]
[BlackElo "2651"]
[Annotator "ChessBase"]
[PlyCount "107"]
[EventDate "2019.02.19"]
[EventCountry "RUS"]
[SourceTitle "playchess.com"]
[Source "ChessBase"]
[SourceQuality "1"]
[TimeControl "40/5400+30:1800+30"]

1. d4 {[%emt 0:00:00]} Nf6 {[%emt 0:00:36]} 2. c4 {[%emt 0:00:00]} e6 {[%emt 0:00:05]} 3. Nf3 {[%emt 0:00:00]} b6 {[%emt 0:00:05]} 4. g3 {[%emt 0:00:38]} Bb7 {[%emt 0:00:07]} 5. Bg2 {[%emt 0:00:09]} Be7 {[%emt 0:00:05]} 6. O-O {[%emt 0:00:35]} O-O {[%emt 0:00:05]} 7. Nc3 {[%emt 0:02:12]} Ne4 {[%emt 0:00:11]} 8. Bd2 {[%emt 0:00:05]} Nxd2 {[%emt 0:00:05]} 9. Qxd2 {[%emt 0:03:16]} d6 {[%emt 0:00:40]} 10. e4 {[%emt 0:00:18]} Nd7 {[%emt 0:00:22]} 11. Rad1 {[%emt 0:00:45]} a6 {[%emt 0:09:53]} 12. Rfe1 {[%emt 0:06:28]} c5 {[%emt 0:05:57]} 13. d5 {[%emt 0:22:43]} e5 {[%emt 0:00:13]} 14. a3 {[%emt 0:00:56]} g6 {[%emt 0:01:17]} 15. Qc2 {[%emt 0:20:03]} Qc7 {[%emt 0:05:56]} 16. Bh3 {[%emt 0:00:56]} Nf6 {[%emt 0:03:54]} 17. Rf1 {[%emt 0:00:45]} Nh5 {[%emt 0:02:05]} 18. Ne1 {[%emt 0:00:05]} Bg5 {[%emt 0:13:08]} 19. Nd3 {[%emt 0:03:34]} Rae8 {[%emt 0:00:07]} 20. Rde1 {[%emt 0:01:35]} Bh6 {[%emt 0:03:18]} 21. Qd1 {[%emt 0:02:06]} Qd8 {[%emt 0:05:43]} 22. Kh1 {[%emt 0:00:53]} Ng7 {[%emt 0:02:07]} 23. f4 {[%emt 0:03:57]} exf4 {[%emt 0:00:52]} 24. gxf4 {[%emt 0:01:03]} f5 {[%emt 0:00:18]} 25. e5 {[%emt 0:01:41]} dxe5 {[%emt 0:03:43]} 26. fxe5 {[%emt 0:01:43]} Qh4 {[%emt 0:00:06]} 27. Bg2 {[%emt 0:00:03]} Nh5 {[%emt 0:02:00]} 28. Qf3 {[%emt 0:08:50]} Qxc4 {[%emt 0:00:26]} 29. e6 {[%emt 0:00:05]} Qd4 {[%emt 0:17:19]} 30. Ne2 {[%emt 0:15:36]} Qg7 {[%emt 0:02:08]} 31. Nc3 {[%emt 0:01:50]} Nf6 {[%emt 0:02:04]} 32. Qe2 {[%emt 0:00:40]} Qe7 {[%emt 0:05:21]} 33. Ne5 {[%emt 0:01:01]} b5 {[%emt 0:00:05]} 34. Nf7 {[%emt 0:01:36]} Rxf7 {[%emt 0:00:58]} 35. exf7+ {[%emt 0:00:02]} Qxf7 {[%emt 0:00:07]} 36. Qf2 {[%emt 0:00:00]} Rxe1 {[%emt 0:04:22]} 37. Rxe1 {[%emt 0:00:05]} Bf8 {[%emt 0:03:43]} 38. Qe2 {[%emt 0:01:57]} b4 {[%emt 0:00:54]} 39. Nd1 {[%emt 0:00:24]} Bxd5 {[%emt 0:01:19]} 40. Qxa6 {[%emt 0:00:00]} Bxg2+ {[%emt 0:00:00]} 41. Kxg2 {[%emt 0:00:40]} Qd5+ {[%emt 0:06:27]} 42. Kg1 {[%emt 0:00:15]} Qd4+ {[%emt 0:00:56]} 43. Kh1 {[%emt 0:04:38]} bxa3 {[%emt 0:05:13]} 44. bxa3 {[%emt 0:04:50]} f4 {[%emt 0:12:53]} 45. Qe6+ {[%emt 0:01:25]} Kg7 {[%emt 0:00:06]} 46. Qe5 {[%emt 0:00:05]} Qd2 {[%emt 0:00:27]} 47. Nc3 {[%emt 0:00:44]} Qd4 {[%emt 0:04:06]} 48. a4 {[%emt 0:05:14]} f3 {[%emt 0:05:17]} 49. Qxd4 {[%emt 0:02:36]} cxd4 {[%emt 0:00:04]} 50. Ne4 {[%emt 0:00:52]} Ng4 {[%emt 0:03:28]} 51. a5 {[%emt 0:03:24]} d3 {[%emt 0:00:25]} 52. a6 {[%emt 0:01:35]} d2 {[%emt 0:00:33]} 53. Rb1 {[%emt 0:01:27]} Ne3 {[%emt 0:03:31]} 54. a7 {[%emt 0:00:40]} 1-0

[Event "17th Aeroflot Open-A 2019"]
[Site "Moscow"]
[Date "2019.02.27"]
[Round "9.33"]
[White "Esipenko, Andrey"]
[Black "Gagare, Shardul"]
[Result "1-0"]
[ECO "C88"]
[WhiteElo "2603"]
[BlackElo "2495"]
[Annotator "ChessBase"]
[PlyCount "83"]
[EventDate "2019.02.19"]
[EventCountry "RUS"]
[SourceTitle "playchess.com"]
[Source "ChessBase"]
[SourceQuality "1"]
[TimeControl "40/5400+30:1800+30"]

1. e4 {[%emt 0:00:00]} e5 {[%emt 0:02:01]} 2. Nf3 {[%emt 0:00:00]} Nc6 {[%emt 0:00:05]} 3. Bb5 {[%emt 0:00:02]} a6 {[%emt 0:00:10]} 4. Ba4 {[%emt 0:00:11]} Nf6 {[%emt 0:00:10]} 5. O-O {[%emt 0:00:11]} Be7 {[%emt 0:00:19]} 6. Re1 {[%emt 0:00:13]} b5 {[%emt 0:00:18]} 7. Bb3 {[%emt 0:00:06]} d6 {[%emt 0:00:12]} 8. a4 {[%emt 0:00:09]} Bg4 {[%emt 0:04:11]} 9. c3 {[%emt 0:00:19]} O-O 10. h3 {[%emt 0:00:20]} Bh5 {[%emt 0:01:31]} 11. d3 {[%emt 0:04:56]} Na5 {[%emt 0:00:25]} 12. Bc2 {[%emt 0:02:07]} b4 {[%emt 0:00:40]} 13. Nbd2 {[%emt 0:03:36]} Nd7 {[%emt 0:00:17]} 14. g4 {[%emt 0:03:17]} Bg6 {[%emt 0:00:13]} 15. Nf1 {[%emt 0:00:56]} Rb8 16. Ng3 {[%emt 0:01:58]} bxc3 {[%emt 0:32:51]} 17. bxc3 Nc5 {[%emt 0:00:41]} 18. Be3 {[%emt 0:07:19]} Ne6 19. Nf5 {[%emt 0:13:57]} c5 {[%emt 0:15:49]} 20. Kg2 {[%emt 0:01:44]} Re8 {[%emt 0:02:53]} 21. Rb1 {[%emt 0:07:43]} Qc7 {[%emt 0:09:10]} 22. h4 {[%emt 0:10:49]} f6 23. d4 {[%emt 0:20:15]} cxd4 {[%emt 0:06:08]} 24. cxd4 {[%emt 0:00:04]} Bf8 {[%emt 0:07:46]} 25. h5 {[%emt 0:02:35]} Bf7 {[%emt 0:00:42]} 26. d5 {[%emt 0:00:10]} Nc5 {[%emt 0:05:50]} 27. Qe2 {[%emt 0:00:25]} Rxb1 {[%emt 0:02:25]} 28. Rxb1 {[%emt 0:00:06]} Nab7 {[%emt 0:00:59]} 29. Ng3 h6 30. Nh4 {[%emt 0:09:30]} Rc8 {[%emt 0:04:23]} 31. Ng6 {[%emt 0:00:09]} Be8 32. Nf5 {[%emt 0:00:57]} Ra8 {[%emt 0:01:03]} 33. Qf3 {[%emt 0:04:11]} Nxa4 {[%emt 0:04:18]} 34. Nxf8 {[%emt 0:04:57]} Kxf8 {[%emt 0:00:06]} 35. g5 {[%emt 0:01:21]} hxg5 {[%emt 0:00:50]} 36. h6 {[%emt 0:00:22]} gxh6 {[%emt 0:00:59]} 37. Nxh6 {[%emt 0:00:16]} Qg7 {[%emt 0:00:31]} 38. Nf5 {[%emt 0:00:24]} g4 {[%emt 0:00:32]} 39. Qg3 {[%emt 0:00:24]} Qh7 {[%emt 0:00:29]} 40. Bh6+ {[%emt 0:00:00]} Kg8 {[%emt 0:00:00]} 41. Qxg4+ {[%emt 0:00:34]} Bg6 {[%emt 0:01:59]} 42. Rxb7 {[%emt 0:00:12]} 1-0

[Event "17th Aeroflot Open-A 2019"]
[Site "Moscow"]
[Date "2019.02.27"]
[Round "9.34"]
[White "Lobanov, Sergei"]
[Black "Gordievsky, Dmitry"]
[Result "0-1"]
[ECO "B34"]
[WhiteElo "2526"]
[BlackElo "2603"]
[Annotator "RC"]
[PlyCount "104"]
[EventDate "2019.02.19"]
[EventCountry "RUS"]
[SourceTitle "playchess.com"]
[Source "ChessBase"]
[SourceQuality "1"]
[TimeControl "40/5400+30:1800+30"]

1. e4 {[%emt 0:02:05]} c5 {[%emt 0:00:00]} 2. Nf3 {[%emt 0:00:04]} Nc6 {[%emt 0:00:00]} 3. d4 {[%emt 0:00:06]} cxd4 {[%emt 0:00:00]} 4. Nxd4 {[%emt 0:00:05]} Nf6 {[%emt 0:00:00]} 5. Nc3 {[%emt 0:00:07]} e5 {[%emt 0:00:00]} 6. Ndb5 {[%emt 0:00:06]} d6 {[%emt 0:00:00]} 7. Nd5 {[%emt 0:01:36]} Nxd5 {[%emt 0:00:14]} 8. exd5 {[%emt 0:00:06]} Nb8 {[%emt 0:03:49]} 9. a4 {[%emt 0:00:19]} Be7 {[%emt 0:00:46]} 10. Be2 {[%emt 0:00:07]} O-O {[%emt 0:00:08]} 11. O-O {[%emt 0:00:04]} f5 {[%emt 0:06:38]} 12. Bd2 {[%emt 0:00:49]} a6 {[%emt 0:10:34]} 13. Na3 {[%emt 0:00:06]} f4 {[%emt 0:03:06]} 14. Nc4 {[%emt 0:07:06]} Bf5 {[%emt 0:02:51]} 15. Ba5 {[%emt 0:35:05]} Qe8 {[%emt 0:00:25]} 16. Bb4 {[%emt 0:00:08]} Rf6 {[%emt 0:02:19]} 17. Bg4 {[%emt 0:00:50]} Bxg4 {[%emt 0:06:19]} 18. Qxg4 {[%emt 0:00:01]} Nd7 {[%emt 0:00:45]} 19. Nd2 {[%emt 0:08:34]} Rg6 {[%emt 0:00:23]} 20. Qf3 {[%emt 0:01:45]} Nf6 {[%emt 0:03:57]} 21. c4 {[%emt 0:00:46]} Qd7 {[%emt 0:03:25]} 22. Rfe1 {[%emt 0:00:53]} Rf8 {[%emt 0:02:07]} 23. a5 {[%emt 0:03:17]} Ng4 {[%emt 0:04:40]} 24. Rac1 {[%emt 0:05:39]} Nh6 {[%emt 0:01:34]} 25. c5 {[%emt 0:15:00]} dxc5 {[%emt 0:05:10]} 26. Bxc5 {[%emt 0:00:04]} Nf5 {[%emt 0:06:30]} 27. Bxe7 {[%emt 0:04:24]} Qxe7 {[%emt 0:00:12]} 28. Qh3 {[%emt 0:11:11]} Nh4 {[%emt 0:11:24]} 29. g3 {[%emt 0:00:04]} fxg3 {[%emt 0:00:05]} 30. fxg3 {[%emt 0:01:22]} Nf5 {[%emt 0:15:32]} 31. Rf1 {[%emt 0:01:44]} Qg5 {[%emt 0:01:10]} 32. Nc4 {[%emt 0:01:22]} Rgf6 {[%emt 0:00:57]} 33. Rce1 {[%emt 0:00:41]} Nd4 {[%emt 0:04:16]} 34. Kh1 {[%emt 0:00:21]} Nf3 {[%emt 0:03:39]} 35. Re3 {[%emt 0:00:39]} e4 {[%emt 0:00:44]} 36. d6 {[%emt 0:00:51]} Rh6 {[%emt 0:01:32]} 37. Qg2 {[%emt 0:00:15]} Rxh2+ {[%emt 0:02:38]} 38. Qxh2 {[%emt 0:00:01]} Nxh2 {[%emt 0:00:07]} 39. Rxf8+ {[%emt 0:00:05]} Kxf8 {[%emt 0:00:03]} 40. Kxh2 {[%emt 0:00:00]} Qd5 {[%emt 0:00:00]} 41. b3 {[%emt 0:00:16]} Ke8 {[%emt 0:04:21]} 42. Kg2 {[%emt 0:08:25]} Kd8 {[%emt 0:00:10]} 43. Kf2 {[%emt 0:01:50]} h5 {[%emt 0:02:52]} 44. Kg2 {[%emt 0:03:13]} g5 {[%emt 0:02:05]} 45. Re2 {[%emt 0:00:47]} Qd3 {[%emt 0:03:24]} 46. Rf2 {[%emt 0:04:13]} Ke8 {[%emt 0:03:38]} 47. Rf5 {[%emt 0:02:40]} g4 {[%emt 0:06:08]} 48. Re5+ {[%emt 0:02:39]} Kf8 {[%emt 0:01:57]} 49. Rxh5 {[%emt 0:10:51]} Qf3+ {[%emt 0:00:48]} 50. Kh2 {[%emt 0:00:35]} Qf2+ {[%emt 0:00:12]} 51. Kh1 {[%emt 0:00:01]} Qxg3 {[%emt 0:03:56]} 52. d7 {[%emt 0:00:12]} Qf3+ {[%emt 0:00:22]} 0-1

[Event "17th Aeroflot Open-A 2019"]
[Site "Moscow"]
[Date "2019.02.27"]
[Round "9.35"]
[White "Gavrilescu, David"]
[Black "Svane, Rasmus"]
[Result "0-1"]
[ECO "C07"]
[WhiteElo "2479"]
[BlackElo "2599"]
[Annotator "ChessBase"]
[PlyCount "156"]
[EventDate "2019.02.19"]
[EventCountry "RUS"]
[SourceTitle "playchess.com"]
[Source "ChessBase"]
[SourceQuality "1"]
[TimeControl "40/5400+30:1800+30"]

1. e4 {[%emt 0:00:00]} e6 {[%emt 0:00:00]} 2. d4 {[%emt 0:00:26]} d5 {[%emt 0:00:00]} 3. Nd2 {[%emt 0:00:34]} c5 {[%emt 0:00:04]} 4. exd5 {[%emt 0:00:27]} Qxd5 {[%emt 0:00:06]} 5. dxc5 {[%emt 0:00:23]} Qxc5 {[%emt 0:00:28]} 6. Ngf3 {[%emt 0:00:39]} Nf6 {[%emt 0:00:07]} 7. Bd3 {[%emt 0:00:22]} Nbd7 {[%emt 0:00:11]} 8. O-O {[%emt 0:00:51]} Qc7 {[%emt 0:00:04]} 9. a4 {[%emt 0:01:05]} Nc5 {[%emt 0:00:53]} 10. Bc4 {[%emt 0:00:30]} Bd6 {[%emt 0:01:14]} 11. Bb5+ {[%emt 0:08:02]} Bd7 {[%emt 0:01:59]} 12. Nc4 {[%emt 0:00:48]} Be7 {[%emt 0:00:06]} 13. Nfe5 {[%emt 0:04:35]} a6 {[%emt 0:28:03]} 14. Bxd7+ {[%emt 0:06:01]} Ncxd7 {[%emt 0:00:43]} 15. Bf4 {[%emt 0:10:47]} Nxe5 {[%emt 0:01:16]} 16. Nxe5 {[%emt 0:00:10]} Rd8 {[%emt 0:04:19]} 17. Qf3 {[%emt 0:07:13]} Bd6 {[%emt 0:06:37]} 18. Rfe1 {[%emt 0:03:33]} O-O {[%emt 0:09:25]} 19. c3 {[%emt 0:01:41]} Nd5 {[%emt 0:04:30]} 20. Bg3 {[%emt 0:01:56]} Ne7 {[%emt 0:03:04]} 21. Nd3 {[%emt 0:09:12]} Nc6 {[%emt 0:04:20]} 22. Rad1 {[%emt 0:04:52]} e5 {[%emt 0:05:54]} 23. h3 {[%emt 0:04:20]} Kh8 {[%emt 0:04:32]} 24. Qe4 {[%emt 0:09:40]} f6 {[%emt 0:06:07]} 25. Qc4 {[%emt 0:01:50]} Qb6 {[%emt 0:03:33]} 26. b4 {[%emt 0:02:51]} a5 {[%emt 0:02:33]} 27. Nc5 {[%emt 0:01:30]} Bxc5 {[%emt 0:01:59]} 28. bxc5 {[%emt 0:00:49]} Qc7 {[%emt 0:03:18]} 29. f4 {[%emt 0:02:03]} Rxd1 {[%emt 0:00:12]} 30. Rxd1 {[%emt 0:00:06]} Re8 {[%emt 0:00:10]} 31. fxe5 {[%emt 0:00:29]} fxe5 {[%emt 0:01:41]} 32. Rf1 {[%emt 0:01:23]} Qc8 {[%emt 0:03:22]} 33. Kh2 {[%emt 0:05:05]} h6 {[%emt 0:00:33]} 34. Qd5 {[%emt 0:04:07]} e4 {[%emt 0:01:26]} 35. Re1 {[%emt 0:01:31]} e3 {[%emt 0:01:05]} 36. Re2 {[%emt 0:00:44]} Ne7 {[%emt 0:00:58]} 37. Qh5 {[%emt 0:05:14]} Nf5 {[%emt 0:00:02]} 38. Bf4 {[%emt 0:00:24]} Re4 {[%emt 0:00:54]} 39. Qf3 {[%emt 0:01:16]} Qe6 {[%emt 0:00:24]} 40. g4 {[%emt 0:00:00]} Nh4 {[%emt 0:00:00]} 41. Qg3 {[%emt 0:05:56]} Qc4 {[%emt 0:24:08]} 42. Rxe3 {[%emt 0:01:21]} Qf1 {[%emt 0:02:29]} 43. Rxe4 {[%emt 0:10:21]} Nf3+ {[%emt 0:00:04]} 44. Qxf3 {[%emt 0:00:06]} Qxf3 {[%emt 0:00:04]} 45. Re8+ {[%emt 0:01:09]} Kh7 {[%emt 0:00:05]} 46. Bd6 {[%emt 0:03:08]} Qf2+ {[%emt 0:00:06]} 47. Kh1 {[%emt 0:00:03]} Qf1+ {[%emt 0:00:05]} 48. Kh2 {[%emt 0:00:04]} Qf2+ {[%emt 0:00:04]} 49. Kh1 {[%emt 0:00:03]} Kg6 {[%emt 0:03:53]} 50. Re6+ {[%emt 0:00:42]} Kf7 {[%emt 0:00:13]} 51. Re5 {[%emt 0:03:34]} Qf1+ {[%emt 0:00:12]} 52. Kh2 {[%emt 0:00:04]} Qf2+ {[%emt 0:00:04]} 53. Kh1 {[%emt 0:00:02]} Qf3+ {[%emt 0:00:24]} 54. Kh2 {[%emt 0:00:08]} Qxc3 {[%emt 0:00:20]} 55. Re7+ {[%emt 0:01:26]} Kf6 {[%emt 0:00:33]} 56. Kg2 {[%emt 0:01:46]} Qd2+ {[%emt 0:00:51]} 57. Kg3 {[%emt 0:00:16]} Qd3+ {[%emt 0:00:10]} 58. Kg2 {[%emt 0:00:22]} Qd5+ {[%emt 0:00:47]} 59. Kf2 {[%emt 0:00:45]} Qa2+ {[%emt 0:01:08]} 60. Kg3 {[%emt 0:00:47]} Qb3+ {[%emt 0:00:18]} 61. Kh2 {[%emt 0:02:07]} b6 {[%emt 0:02:20]} 62. Rc7 {[%emt 0:02:28]} Qc2+ {[%emt 0:01:11]} 63. Kg3 {[%emt 0:00:49]} Qd3+ {[%emt 0:00:14]} 64. Kf2 {[%emt 0:00:22]} Qd4+ {[%emt 0:00:36]} 65. Kf3 {[%emt 0:00:17]} bxc5 {[%emt 0:00:49]} 66. Bxc5 {[%emt 0:00:31]} Qxa4 {[%emt 0:00:09]} 67. h4 {[%emt 0:00:41]} Qb3+ {[%emt 0:01:20]} 68. Be3 {[%emt 0:00:31]} a4 {[%emt 0:01:38]} 69. Ke4 {[%emt 0:00:50]} Qe6+ {[%emt 0:00:58]} 70. Kd3 {[%emt 0:00:19]} Qxg4 {[%emt 0:00:59]} 71. Bd4+ {[%emt 0:00:20]} Ke6 {[%emt 0:00:18]} 72. Rxg7 {[%emt 0:00:14]} Qxh4 {[%emt 0:00:07]} 73. Ra7 {[%emt 0:00:07]} Qh3+ {[%emt 0:00:54]} 74. Be3 {[%emt 0:00:14]} Qf1+ {[%emt 0:00:42]} 75. Kd2 {[%emt 0:01:44]} Qc4 {[%emt 0:00:48]} 76. Rh7 {[%emt 0:00:45]} Qa2+ {[%emt 0:00:31]} 77. Kc1 {[%emt 0:00:32]} Qa3+ {[%emt 0:00:10]} 78. Kd2 {[%emt 0:00:04]} Qb2+ {[%emt 0:00:04]} 0-1